[Event "*** Titled Tuesday Blitz"]
[Site "Chess.com"]
[Date "2019.03.05"]
[Round "7"]
[White "Walter_White_Poland"]
[Black "Lennis93"]
[Result "0-1"]
[WhiteElo "2193"]
[BlackElo "2239"]
[TimeControl "180+2"]
[EndTime "14:36:51 PST"]
[Termination "Lennis93 won by resignation"]

1. e4 {[%clk 0:03:01.9]} 1... c6 {[%clk 0:02:58.4]} 2. d4 {[%clk 0:03:01.3]}
2... d5 {[%clk 0:03:00]} 3. Nc3 {[%clk 0:03:02.1]} 3... dxe4 {[%clk 0:03:01.1]}
4. Nxe4 {[%clk 0:03:01.1]} 4... Nf6 {[%clk 0:03:03]} 5. Nxf6+ {[%clk 0:03:01.5]}
5... exf6 {[%clk 0:03:04]} 6. Bc4 {[%clk 0:03:01.5]} 6... Bd6 {[%clk 0:03:05.5]}
7. Qe2+ {[%clk 0:03:01.9]} 7... Be7 {[%clk 0:03:05.3]} 8. Be3 {[%clk 0:02:45.7]}
8... O-O {[%clk 0:03:06.5]} 9. O-O-O {[%clk 0:02:45.8]} 9... Nd7 {[%clk
0:03:06.6]} 10. Nf3 {[%clk 0:02:39.8]} 10... Nb6 {[%clk 0:03:06.8]} 11. Bb3
{[%clk 0:02:38.8]} 11... a5 {[%clk 0:03:06.6]} 12. a4 {[%clk 0:02:38.6]} 12...
Re8 {[%clk 0:03:06.7]} 13. Kb1 {[%clk 0:02:23.7]} 13... Bb4 {[%clk 0:02:56.7]}
14. d5 {[%clk 0:02:07.9]} 14... Nxd5 {[%clk 0:02:55.9]} 15. c4 {[%clk
0:02:05.6]} 15... Bf5+ {[%clk 0:02:55.9]} 16. Ka2 {[%clk 0:01:53.8]} 16... Nf4
{[%clk 0:02:52.5]} 17. Rxd8 {[%clk 0:01:35.8]} 17... Nxe2 {[%clk 0:02:52.9]} 18.
Rxa8 {[%clk 0:01:34.4]} 18... Rxa8 {[%clk 0:02:52.5]} 19. Rd1 {[%clk 0:01:25.4]}
19... g5 {[%clk 0:02:49.5]} 20. c5 {[%clk 0:01:22]} 20... Re8 {[%clk 0:02:46]}
21. Bc4 {[%clk 0:01:13.4]} 21... Nf4 {[%clk 0:02:45.7]} 22. Bxf4 {[%clk
0:01:13]} 22... gxf4 {[%clk 0:02:46.1]} 23. Nd4 {[%clk 0:01:10.9]} 23... Bg6
{[%clk 0:02:44.2]} 24. Nb3 {[%clk 0:01:08.9]} 24... Re7 {[%clk 0:02:36.3]} 25.
f3 {[%clk 0:00:46.8]} 25... Kg7 {[%clk 0:02:37]} 26. Rd4 {[%clk 0:00:46.1]}
26... Re1 {[%clk 0:02:36.1]} 27. Bd3 {[%clk 0:00:39.5]} 27... Bxd3 {[%clk
0:02:33.9]} 28. Rxd3 {[%clk 0:00:39.6]} 28... Re2 {[%clk 0:02:34.5]} 29. Rd7
{[%clk 0:00:32.3]} 29... Bc3 {[%clk 0:02:25]} 30. Rxb7 {[%clk 0:00:29]} 30...
Rxb2+ {[%clk 0:02:25.1]} 31. Ka3 {[%clk 0:00:30]} 31... Rxg2 {[%clk 0:02:25.6]}
32. Na1 {[%clk 0:00:21.6]} 32... Bxa1 {[%clk 0:02:24.8]} 0-1

[Event "*** Titled Tuesday Blitz"]
[Site "Chess.com"]
[Date "2019.03.05"]
[Round "7"]
[White "Keaton87"]
[Black "shrek4life02"]
[Result "1-0"]
[WhiteElo "2546"]
[BlackElo "2399"]
[TimeControl "180+2"]
[EndTime "14:36:54 PST"]
[Termination "Keaton87 won by resignation"]

1. d4 {[%clk 0:02:54.7]} 1... Nf6 {[%clk 0:03:01]} 2. Nc3 {[%clk 0:02:54.3]}
2... g6 {[%clk 0:03:02.3]} 3. e4 {[%clk 0:02:55]} 3... d5 {[%clk 0:03:01.5]} 4.
e5 {[%clk 0:02:53.4]} 4... Ne4 {[%clk 0:03:01.1]} 5. Nxe4 {[%clk 0:02:54.5]}
5... dxe4 {[%clk 0:03:03]} 6. Bc4 {[%clk 0:02:55.9]} 6... Bg7 {[%clk 0:03:01.7]}
7. h4 {[%clk 0:02:55.9]} 7... Nc6 {[%clk 0:03:00.6]} 8. c3 {[%clk 0:02:56.5]}
8... h5 {[%clk 0:02:59.3]} 9. Nh3 {[%clk 0:02:51.2]} 9... Bg4 {[%clk 0:02:46.1]}
10. Qc2 {[%clk 0:02:51.4]} 10... Nxd4 {[%clk 0:02:38.3]} 11. cxd4 {[%clk
0:02:49.2]} 11... Qxd4 {[%clk 0:02:39.9]} 12. Ng5 {[%clk 0:02:40.8]} 12... O-O-O
{[%clk 0:02:33.4]} 13. Be3 {[%clk 0:02:41]} 13... Qxe5 {[%clk 0:02:29.1]} 14.
Nxf7 {[%clk 0:02:41.5]} 14... Qxb2 {[%clk 0:02:29.6]} 15. Qxb2 {[%clk
0:02:36.4]} 15... Bxb2 {[%clk 0:02:30.6]} 16. Rb1 {[%clk 0:02:36.9]} 16... Bc3+
{[%clk 0:02:26.6]} 17. Kf1 {[%clk 0:02:38.1]} 17... Rhf8 {[%clk 0:01:52.8]} 18.
Nxd8 {[%clk 0:02:38.5]} 18... Rxd8 {[%clk 0:01:52.1]} 19. Be2 {[%clk 0:02:33.1]}
19... Be6 {[%clk 0:01:51.6]} 20. Rd1 {[%clk 0:02:33.3]} 20... Rf8 {[%clk
0:01:50.7]} 21. Rc1 {[%clk 0:02:30.3]} 21... Be5 {[%clk 0:01:50.4]} 22. Bxa7
{[%clk 0:02:23.8]} 22... Bxa2 {[%clk 0:01:48.8]} 23. Bc4 {[%clk 0:02:13.8]}
23... Bf4 {[%clk 0:01:17.7]} 24. Bxa2 {[%clk 0:01:40.8]} 24... Bxc1 {[%clk
0:01:17.5]} 25. Ke2 {[%clk 0:01:42.3]} 25... Bf4 {[%clk 0:01:16.4]} 26. Be6+
{[%clk 0:01:43.2]} 26... Kd8 {[%clk 0:01:16.1]} 27. Bd4 {[%clk 0:01:38.7]} 27...
Bh6 {[%clk 0:00:56.7]} 28. Ra1 {[%clk 0:01:38.7]} 28... c5 {[%clk 0:00:51.6]}
29. Be5 {[%clk 0:01:36.9]} 1-0

[Event "*** Titled Tuesday Blitz"]
[Site "Chess.com"]
[Date "2019.03.05"]
[Round "7"]
[White "HanSchut"]
[Black "riconaipe"]
[Result "0-1"]
[WhiteElo "2311"]
[BlackElo "2436"]
[TimeControl "180+2"]
[EndTime "14:37:01 PST"]
[Termination "riconaipe won by resignation"]

1. e4 {[%clk 0:03:01.9]} 1... c6 {[%clk 0:02:56.1]} 2. d4 {[%clk 0:03:02.2]}
2... d5 {[%clk 0:02:47.3]} 3. exd5 {[%clk 0:03:04.1]} 3... cxd5 {[%clk
0:02:47.6]} 4. c4 {[%clk 0:03:04]} 4... Nf6 {[%clk 0:02:48.6]} 5. Nc3 {[%clk
0:03:04.3]} 5... Be6 {[%clk 0:02:48.5]} 6. c5 {[%clk 0:03:04.1]} 6... g6 {[%clk
0:02:48.9]} 7. Nge2 {[%clk 0:03:01.4]} 7... Bg7 {[%clk 0:02:47.9]} 8. Nf4 {[%clk
0:03:02.2]} 8... Qd7 {[%clk 0:02:48]} 9. Bb5 {[%clk 0:02:49.6]} 9... Nc6 {[%clk
0:02:47.9]} 10. O-O {[%clk 0:02:48.6]} 10... O-O {[%clk 0:02:38.7]} 11. Re1
{[%clk 0:02:39.4]} 11... Bf5 {[%clk 0:02:39.2]} 12. Be3 {[%clk 0:02:22.6]} 12...
Ne4 {[%clk 0:02:21.2]} 13. Nfxd5 {[%clk 0:02:08.5]} 13... Rad8 {[%clk
0:02:12.6]} 14. Nxe4 {[%clk 0:02:06.4]} 14... Bxe4 {[%clk 0:02:12.8]} 15. Nc3
{[%clk 0:02:04.2]} 15... a6 {[%clk 0:02:07.9]} 16. Bxc6 {[%clk 0:01:38.4]} 16...
Bxc6 {[%clk 0:02:05.7]} 17. d5 {[%clk 0:01:37.7]} 17... Bxd5 {[%clk 0:02:02.7]}
18. Qc2 {[%clk 0:01:17.2]} 18... Bc6 {[%clk 0:01:57.1]} 19. Rad1 {[%clk
0:01:16.1]} 19... Qg4 {[%clk 0:01:55.6]} 20. f3 {[%clk 0:00:59.7]} 20... Bxf3
{[%clk 0:01:53.9]} 21. Rxd8 {[%clk 0:00:52.4]} 21... Rxd8 {[%clk 0:01:55.8]} 22.
Qf2 {[%clk 0:00:36.4]} 22... Bc6 {[%clk 0:01:47.7]} 23. Rf1 {[%clk 0:00:28.8]}
23... Qe6 {[%clk 0:01:47.2]} 24. Ne2 {[%clk 0:00:16.2]} 24... Bb5 {[%clk
0:01:43.8]} 25. Bf4 {[%clk 0:00:16.5]} 0-1

[Event "*** Titled Tuesday Blitz"]
[Site "Chess.com"]
[Date "2019.03.05"]
[Round "7"]
[White "GianmarcoVaR"]
[Black "ChessWarrior7197"]
[Result "0-1"]
[WhiteElo "2499"]
[BlackElo "2840"]
[TimeControl "180+2"]
[EndTime "14:37:10 PST"]
[Termination "ChessWarrior7197 won on time"]

1. d4 {[%clk 0:02:08.7]} 1... Nf6 {[%clk 0:03:00]} 2. Nf3 {[%clk 0:02:05.4]}
2... e6 {[%clk 0:03:01.1]} 3. g3 {[%clk 0:02:02.3]} 3... b5 {[%clk 0:03:01.9]}
4. Bg2 {[%clk 0:01:55.6]} 4... Bb7 {[%clk 0:03:03.3]} 5. O-O {[%clk 0:01:56]}
5... Be7 {[%clk 0:03:04.8]} 6. a4 {[%clk 0:01:54.7]} 6... b4 {[%clk 0:03:05.2]}
7. c3 {[%clk 0:01:45.8]} 7... a5 {[%clk 0:03:01.6]} 8. Nbd2 {[%clk 0:01:46.3]}
8... O-O {[%clk 0:03:01.6]} 9. Qc2 {[%clk 0:01:46.8]} 9... d5 {[%clk 0:03:00.6]}
10. Nb3 {[%clk 0:01:47.1]} 10... Nbd7 {[%clk 0:02:55.9]} 11. Bg5 {[%clk
0:01:41.1]} 11... c5 {[%clk 0:02:52.6]} 12. Bxf6 {[%clk 0:01:41.1]} 12... gxf6
{[%clk 0:02:50.7]} 13. cxb4 {[%clk 0:01:22.5]} 13... cxb4 {[%clk 0:02:50.4]} 14.
Rfc1 {[%clk 0:01:14.3]} 14... Rc8 {[%clk 0:02:50.8]} 15. Qd3 {[%clk 0:01:13.6]}
15... Qb6 {[%clk 0:02:51.8]} 16. Qb5 {[%clk 0:00:57.8]} 16... Qxb5 {[%clk
0:02:34.2]} 17. axb5 {[%clk 0:00:58.6]} 17... Rxc1+ {[%clk 0:02:32.1]} 18. Rxc1
{[%clk 0:00:58.9]} 18... Bd8 {[%clk 0:02:29.6]} 19. Nc5 {[%clk 0:00:54.6]} 19...
Bc8 {[%clk 0:02:25.2]} 20. Nxe6 {[%clk 0:00:51]} 20... fxe6 {[%clk 0:02:27.1]}
21. Rxc8 {[%clk 0:00:51.7]} 21... Bb6 {[%clk 0:02:21.8]} 22. Rc6 {[%clk
0:00:21.6]} 22... a4 {[%clk 0:02:21.8]} 23. Rd6 {[%clk 0:00:22.8]} 23... a3
{[%clk 0:02:19.1]} 24. bxa3 {[%clk 0:00:20.1]} 24... bxa3 {[%clk 0:02:21]} 25.
Nd2 {[%clk 0:00:15.7]} 25... a2 {[%clk 0:02:22.2]} 26. Nb3 {[%clk 0:00:16.8]}
26... Rc8 {[%clk 0:02:23.6]} 27. Rxd7 {[%clk 0:00:06]} 27... Rc3 {[%clk
0:02:24.2]} 28. Rb7 {[%clk 0:00:03.4]} 28... Rxb3 {[%clk 0:02:25.2]} 0-1

[Event "*** Titled Tuesday Blitz"]
[Site "Chess.com"]
[Date "2019.03.05"]
[Round "7"]
[White "GadimbayliA"]
[Black "Last7Samurai"]
[Result "1-0"]
[WhiteElo "2854"]
[BlackElo "2687"]
[TimeControl "180+2"]
[EndTime "14:37:35 PST"]
[Termination "GadimbayliA won by resignation"]

1. e4 {[%clk 0:03:01.9]} 1... e5 {[%clk 0:02:59.2]} 2. Nf3 {[%clk 0:03:02.4]}
2... Nc6 {[%clk 0:02:59.9]} 3. Nc3 {[%clk 0:03:03.4]} 3... Nf6 {[%clk
0:03:00.4]} 4. d4 {[%clk 0:03:04.8]} 4... exd4 {[%clk 0:03:01.4]} 5. Nxd4 {[%clk
0:03:06.7]} 5... Bb4 {[%clk 0:03:02.4]} 6. Nxc6 {[%clk 0:03:08.1]} 6... bxc6
{[%clk 0:03:03.1]} 7. Bd3 {[%clk 0:03:10]} 7... d6 {[%clk 0:03:03.6]} 8. O-O
{[%clk 0:03:09.4]} 8... Ng4 {[%clk 0:03:04.4]} 9. h3 {[%clk 0:03:03.8]} 9... Ne5
{[%clk 0:03:03]} 10. Na4 {[%clk 0:03:04.9]} 10... Nxd3 {[%clk 0:02:49.8]} 11.
Qxd3 {[%clk 0:03:02.7]} 11... O-O {[%clk 0:02:43.5]} 12. a3 {[%clk 0:02:56]}
12... Ba5 {[%clk 0:02:43.1]} 13. b4 {[%clk 0:02:57.3]} 13... Bb6 {[%clk
0:02:43.9]} 14. Bb2 {[%clk 0:02:58.8]} 14... Qg5 {[%clk 0:02:39.1]} 15. Kh1
{[%clk 0:02:54.3]} 15... f5 {[%clk 0:02:29.2]} 16. Qc4+ {[%clk 0:02:41.9]} 16...
Kh8 {[%clk 0:02:28.5]} 17. Qxc6 {[%clk 0:02:34.5]} 17... Be6 {[%clk 0:02:20.2]}
18. Nxb6 {[%clk 0:02:20.6]} 18... axb6 {[%clk 0:02:21.8]} 19. Qxc7 {[%clk
0:02:19.4]} 19... fxe4 {[%clk 0:02:05]} 20. Qxd6 {[%clk 0:02:17.8]} 20... Bc4
{[%clk 0:02:04.3]} 21. Rg1 {[%clk 0:01:57.2]} 21... Rxf2 {[%clk 0:01:59]} 22.
Qd4 {[%clk 0:01:53.4]} 22... Rxc2 {[%clk 0:01:48]} 23. Qxe4 {[%clk 0:01:46.1]}
23... Rxb2 {[%clk 0:01:25.2]} 24. Qxa8+ {[%clk 0:01:45.4]} 24... Bg8 {[%clk
0:01:27.1]} 25. Rae1 {[%clk 0:01:40]} 25... Qg3 {[%clk 0:00:25]} 26. Re8 {[%clk
0:01:34.2]} 26... Qb3 {[%clk 0:00:25.6]} 27. Rf1 {[%clk 0:01:13.2]} 27... h6
{[%clk 0:00:26.5]} 28. Rxg8+ {[%clk 0:01:13.6]} 1-0

[Event "*** Titled Tuesday Blitz"]
[Site "Chess.com"]
[Date "2019.03.05"]
[Round "7"]
[White "ALEXJR20"]
[Black "The_Lost_Rogainer"]
[Result "1-0"]
[WhiteElo "2176"]
[BlackElo "2097"]
[TimeControl "180+2"]
[EndTime "14:37:48 PST"]
[Termination "ALEXJR20 won by resignation"]

1. Nf3 {[%clk 0:03:01.9]} 1... Nf6 {[%clk 0:03:00.6]} 2. g3 {[%clk 0:03:03.8]}
2... d5 {[%clk 0:03:00.7]} 3. Bg2 {[%clk 0:03:05.3]} 3... c5 {[%clk 0:03:01.8]}
4. O-O {[%clk 0:03:06.8]} 4... Nc6 {[%clk 0:03:03.2]} 5. d3 {[%clk 0:03:08.2]}
5... e5 {[%clk 0:03:04.6]} 6. e4 {[%clk 0:03:08.4]} 6... Be7 {[%clk 0:03:04.5]}
7. Nc3 {[%clk 0:03:08.5]} 7... d4 {[%clk 0:03:05.7]} 8. Ne2 {[%clk 0:03:10]}
8... O-O {[%clk 0:03:03.5]} 9. Ne1 {[%clk 0:03:11.4]} 9... Ne8 {[%clk 0:03:00]}
10. f4 {[%clk 0:03:12.6]} 10... Nd6 {[%clk 0:02:56.2]} 11. Nf3 {[%clk
0:03:12.1]} 11... f6 {[%clk 0:02:50.5]} 12. f5 {[%clk 0:03:13.1]} 12... c4
{[%clk 0:02:51.6]} 13. g4 {[%clk 0:03:06.1]} 13... cxd3 {[%clk 0:02:46.7]} 14.
cxd3 {[%clk 0:03:06.6]} 14... Bd7 {[%clk 0:02:37]} 15. Rf2 {[%clk 0:03:06.3]}
15... Rc8 {[%clk 0:02:38]} 16. Bf1 {[%clk 0:03:07]} 16... Nb4 {[%clk 0:02:38.6]}
17. Ng3 {[%clk 0:03:02.9]} 17... Qc7 {[%clk 0:02:38.6]} 18. Bd2 {[%clk
0:02:48.7]} 18... Qb6 {[%clk 0:02:26]} 19. Qb3+ {[%clk 0:02:35.5]} 19... Kh8
{[%clk 0:02:18.5]} 20. Qxb4 {[%clk 0:02:33.2]} 20... Qd8 {[%clk 0:02:03.9]} 21.
Qb3 {[%clk 0:02:31.4]} 21... b5 {[%clk 0:02:03.9]} 22. Rc1 {[%clk 0:02:24.1]}
22... a5 {[%clk 0:02:03.9]} 23. h4 {[%clk 0:02:15.9]} 23... b4 {[%clk
0:01:56.3]} 24. g5 {[%clk 0:02:11.6]} 24... a4 {[%clk 0:01:54.5]} 25. Qd1 {[%clk
0:02:11.9]} 25... Nb5 {[%clk 0:01:48.7]} 26. Rxc8 {[%clk 0:02:01.7]} 26... Qxc8
{[%clk 0:01:48.5]} 27. h5 {[%clk 0:01:46.3]} 27... Qd8 {[%clk 0:01:43]} 28. h6
{[%clk 0:01:30.4]} 28... fxg5 {[%clk 0:01:42.7]} 29. hxg7+ {[%clk 0:01:30.2]}
29... Kxg7 {[%clk 0:01:44.6]} 30. Nh5+ {[%clk 0:01:29.6]} 30... Kh8 {[%clk
0:01:43.3]} 31. Nxe5 {[%clk 0:01:17]} 31... Be8 {[%clk 0:01:40.7]} 32. Rh2
{[%clk 0:01:13.7]} 32... Qd6 {[%clk 0:01:38.5]} 33. Nc4 {[%clk 0:01:01.2]} 33...
Bxh5 {[%clk 0:01:30.9]} 34. Qxh5 {[%clk 0:00:58.6]} 34... Qg3+ {[%clk
0:01:28.2]} 35. Kh1 {[%clk 0:00:50.5]} 35... Rf7 {[%clk 0:01:22.1]} 36. Qxf7
{[%clk 0:00:42.3]} 36... Qf3+ {[%clk 0:01:23]} 37. Kg1 {[%clk 0:00:43.3]} 37...
Qg3+ {[%clk 0:01:24.2]} 38. Rg2 {[%clk 0:00:44.4]} 1-0

[Event "*** Titled Tuesday Blitz"]
[Site "Chess.com"]
[Date "2019.03.05"]
[Round "7"]
[White "MishkaFighter"]
[Black "OparinGrigoriy"]
[Result "0-1"]
[WhiteElo "2354"]
[BlackElo "2969"]
[TimeControl "180+2"]
[EndTime "14:38:00 PST"]
[Termination "OparinGrigoriy won by resignation"]

1. d4 {[%clk 0:03:01.9]} 1... Nf6 {[%clk 0:03:00.3]} 2. c4 {[%clk 0:03:01.6]}
2... e6 {[%clk 0:03:01.9]} 3. Nf3 {[%clk 0:03:02.2]} 3... b6 {[%clk 0:03:03.3]}
4. g3 {[%clk 0:03:03.2]} 4... Bb7 {[%clk 0:03:05.2]} 5. Bg2 {[%clk 0:03:04.1]}
5... Be7 {[%clk 0:03:06.7]} 6. O-O {[%clk 0:03:03.8]} 6... O-O {[%clk
0:03:08.2]} 7. Nc3 {[%clk 0:03:01.1]} 7... Ne4 {[%clk 0:03:09.7]} 8. Nxe4 {[%clk
0:03:01.7]} 8... Bxe4 {[%clk 0:03:10.2]} 9. Ne1 {[%clk 0:03:02.9]} 9... Bxg2
{[%clk 0:03:10.5]} 10. Nxg2 {[%clk 0:03:04.8]} 10... d5 {[%clk 0:03:11.8]} 11.
Qa4 {[%clk 0:03:01.1]} 11... c6 {[%clk 0:03:09.2]} 12. Rd1 {[%clk 0:02:49.6]}
12... Qd7 {[%clk 0:03:03.8]} 13. Nf4 {[%clk 0:02:35.6]} 13... b5 {[%clk
0:03:03.4]} 14. cxb5 {[%clk 0:02:35.3]} 14... cxb5 {[%clk 0:03:05.3]} 15. Qb3
{[%clk 0:02:34.6]} 15... a5 {[%clk 0:03:01.4]} 16. a4 {[%clk 0:02:30.8]} 16...
b4 {[%clk 0:03:02.2]} 17. e4 {[%clk 0:02:17.2]} 17... dxe4 {[%clk 0:02:50.5]}
18. d5 {[%clk 0:02:18.5]} 18... e5 {[%clk 0:02:51.7]} 19. d6 {[%clk 0:02:05.5]}
19... Bxd6 {[%clk 0:02:35.3]} 20. Qd5 {[%clk 0:01:17.4]} 20... Ra6 {[%clk
0:02:29.9]} 21. Ng2 {[%clk 0:01:11.7]} 21... Qc6 {[%clk 0:02:25.1]} 22. Qb3
{[%clk 0:01:02.5]} 22... Nd7 {[%clk 0:02:21.6]} 23. Be3 {[%clk 0:01:00]} 23...
Nc5 {[%clk 0:02:22.2]} 24. Bxc5 {[%clk 0:00:48.9]} 24... Bxc5 {[%clk 0:02:24.1]}
25. Rac1 {[%clk 0:00:49.7]} 25... Qb6 {[%clk 0:02:25.1]} 26. Qc2 {[%clk
0:00:49.7]} 26... Bd4 {[%clk 0:02:22.5]} 27. Qxe4 {[%clk 0:00:49.4]} 27... Bxf2+
{[%clk 0:02:22.9]} 28. Kh1 {[%clk 0:00:50.9]} 28... Bd4 {[%clk 0:02:24.2]} 29.
Nh4 {[%clk 0:00:49.1]} 29... Bxb2 {[%clk 0:02:22.5]} 30. Rc2 {[%clk 0:00:40]}
30... Bd4 {[%clk 0:02:21]} 31. Nf5 {[%clk 0:00:40.8]} 31... g6 {[%clk
0:02:22.1]} 32. Ne7+ {[%clk 0:00:36.2]} 32... Kg7 {[%clk 0:02:21]} 33. Nd5
{[%clk 0:00:36.9]} 33... Qd6 {[%clk 0:02:09.9]} 34. Rc4 {[%clk 0:00:09.7]} 34...
Rc6 {[%clk 0:02:02.7]} 35. Rdxd4 {[%clk 0:00:06.6]} 35... exd4 {[%clk
0:02:01.3]} 36. Qxd4+ {[%clk 0:00:07.9]} 36... f6 {[%clk 0:02:02.6]} 37. Qa7+
{[%clk 0:00:02.1]} 37... Rf7 {[%clk 0:02:02.5]} 38. Rxc6 {[%clk 0:00:03]} 38...
Qxd5+ {[%clk 0:02:03.1]} 39. Kg1 {[%clk 0:00:03.1]} 39... Rxa7 {[%clk
0:02:04.6]} 0-1

[Event "*** Titled Tuesday Blitz"]
[Site "Chess.com"]
[Date "2019.03.05"]
[Round "7"]
[White "tunadrol"]
[Black "gmjlh"]
[Result "0-1"]
[WhiteElo "2499"]
[BlackElo "2714"]
[TimeControl "180+2"]
[EndTime "14:38:05 PST"]
[Termination "gmjlh won by resignation"]

1. e4 {[%clk 0:03:01.9]} 1... c5 {[%clk 0:03:00.2]} 2. Nf3 {[%clk 0:03:02.9]}
2... Nc6 {[%clk 0:03:01.4]} 3. d4 {[%clk 0:03:04]} 3... cxd4 {[%clk 0:03:03.3]}
4. Nxd4 {[%clk 0:03:05.6]} 4... Nf6 {[%clk 0:03:05]} 5. Nc3 {[%clk 0:03:04.2]}
5... e5 {[%clk 0:03:06.5]} 6. Ndb5 {[%clk 0:03:03.5]} 6... d6 {[%clk 0:03:07.7]}
7. Bg5 {[%clk 0:03:03.4]} 7... a6 {[%clk 0:03:08.4]} 8. Na3 {[%clk 0:03:04.3]}
8... b5 {[%clk 0:03:09.5]} 9. Nd5 {[%clk 0:03:05.1]} 9... Be7 {[%clk 0:03:10.4]}
10. Bxf6 {[%clk 0:03:05.9]} 10... Bxf6 {[%clk 0:03:11.8]} 11. c3 {[%clk
0:03:06.7]} 11... O-O {[%clk 0:03:07.2]} 12. Nc2 {[%clk 0:03:05.9]} 12... Rb8
{[%clk 0:03:06]} 13. Nce3 {[%clk 0:03:02.1]} 13... Bg5 {[%clk 0:03:06.3]} 14.
Be2 {[%clk 0:02:58.3]} 14... Bxe3 {[%clk 0:02:44.8]} 15. Nxe3 {[%clk 0:02:56.6]}
15... Ne7 {[%clk 0:02:43.1]} 16. Qd3 {[%clk 0:02:35.4]} 16... Qc7 {[%clk
0:02:32]} 17. Rd1 {[%clk 0:02:32.2]} 17... Rd8 {[%clk 0:02:32.4]} 18. O-O {[%clk
0:02:28.8]} 18... Be6 {[%clk 0:02:31]} 19. Nd5 {[%clk 0:02:26.1]} 19... Bxd5
{[%clk 0:02:29]} 20. exd5 {[%clk 0:02:27.2]} 20... f5 {[%clk 0:02:03.8]} 21. f4
{[%clk 0:01:48.2]} 21... Qc5+ {[%clk 0:01:59.8]} 22. Kh1 {[%clk 0:01:46.6]}
22... e4 {[%clk 0:01:59.1]} 23. Qh3 {[%clk 0:01:43]} 23... Rf8 {[%clk
0:01:45.7]} 24. g4 {[%clk 0:01:31]} 24... g6 {[%clk 0:01:39.2]} 25. gxf5 {[%clk
0:01:07.1]} 25... Nxf5 {[%clk 0:01:41.1]} 26. b4 {[%clk 0:00:45.9]} 26... Qe3
{[%clk 0:01:34.1]} 27. Qg2 {[%clk 0:00:38.6]} 27... Qxc3 {[%clk 0:01:28.2]} 28.
Qxe4 {[%clk 0:00:39.5]} 28... Rbe8 {[%clk 0:01:23.7]} 29. Qd3 {[%clk 0:00:27.5]}
29... Qxd3 {[%clk 0:01:21.1]} 30. Bxd3 {[%clk 0:00:26.5]} 30... Ne3 {[%clk
0:01:21.7]} 31. f5 {[%clk 0:00:15.9]} 31... Nxd1 {[%clk 0:01:19.8]} 32. Rxd1
{[%clk 0:00:17]} 32... gxf5 {[%clk 0:01:21.4]} 33. Rg1+ {[%clk 0:00:17.9]} 33...
Kh8 {[%clk 0:01:22.4]} 34. Rf1 {[%clk 0:00:18.8]} 34... Re5 {[%clk 0:01:23.5]}
0-1

[Event "*** Titled Tuesday Blitz"]
[Site "Chess.com"]
[Date "2019.03.05"]
[Round "7"]
[White "Kimster98"]
[Black "Vamostodorecto"]
[Result "0-1"]
[WhiteElo "2605"]
[BlackElo "2543"]
[TimeControl "180+2"]
[EndTime "14:38:14 PST"]
[Termination "Vamostodorecto won by resignation"]

1. Nf3 {[%clk 0:02:56.9]} 1... Nf6 {[%clk 0:02:59.3]} 2. g3 {[%clk 0:02:57]}
2... g6 {[%clk 0:03:00.9]} 3. b3 {[%clk 0:02:56.4]} 3... Bg7 {[%clk 0:03:01.6]}
4. Bb2 {[%clk 0:02:56.3]} 4... O-O {[%clk 0:03:03.5]} 5. Bg2 {[%clk 0:02:57.1]}
5... d5 {[%clk 0:03:04.7]} 6. c4 {[%clk 0:02:57.8]} 6... c6 {[%clk 0:03:04.2]}
7. O-O {[%clk 0:02:57.9]} 7... Bf5 {[%clk 0:03:05.6]} 8. d3 {[%clk 0:02:58.3]}
8... Qc8 {[%clk 0:03:04.3]} 9. Nbd2 {[%clk 0:02:56.4]} 9... Bh3 {[%clk
0:03:04.2]} 10. b4 {[%clk 0:02:56.5]} 10... Bxg2 {[%clk 0:03:04.6]} 11. Kxg2
{[%clk 0:02:58.4]} 11... Re8 {[%clk 0:02:44.9]} 12. Rc1 {[%clk 0:02:46.4]} 12...
Qf5 {[%clk 0:02:44.7]} 13. cxd5 {[%clk 0:02:40.5]} 13... cxd5 {[%clk 0:02:46.6]}
14. Rc7 {[%clk 0:02:31.4]} 14... Nc6 {[%clk 0:02:33.4]} 15. Rxb7 {[%clk
0:02:23.8]} 15... Qc8 {[%clk 0:02:30.4]} 16. Rb5 {[%clk 0:02:15.3]} 16... e5
{[%clk 0:01:59.5]} 17. Rc5 {[%clk 0:01:59.4]} 17... Qb7 {[%clk 0:01:40.9]} 18.
b5 {[%clk 0:01:52.9]} 18... Nd8 {[%clk 0:01:41.8]} 19. Bxe5 {[%clk 0:01:46.1]}
19... Ne6 {[%clk 0:01:29.2]} 20. Rc2 {[%clk 0:01:44.4]} 20... Qxb5 {[%clk
0:01:28.6]} 21. Qa1 {[%clk 0:01:39.4]} 21... Nh5 {[%clk 0:01:27.2]} 22. Rb1
{[%clk 0:01:34.7]} 22... Qa4 {[%clk 0:01:24.2]} 23. Nb3 {[%clk 0:01:10.1]} 23...
Qg4 {[%clk 0:01:22.1]} 24. Bxg7 {[%clk 0:00:48]} 24... Nef4+ {[%clk 0:01:21.2]}
25. Kh1 {[%clk 0:00:48.6]} 25... Rxe2 {[%clk 0:01:09]} 26. Ne5 {[%clk
0:00:23.1]} 26... Qh3 {[%clk 0:01:03.3]} 27. gxf4 {[%clk 0:00:21.2]} 27... Rxc2
{[%clk 0:00:52.3]} 28. Rg1 {[%clk 0:00:22.2]} 28... Rxf2 {[%clk 0:00:48.6]} 29.
Ng4 {[%clk 0:00:21]} 29... Qf3+ {[%clk 0:00:47.1]} 0-1